bitfinex/quotes_SOLUSD_20251231
["timestamp","ask_amount","ask_price","bid_price","bid_amount"]
[1767175296439,0.68073842,126.37,126.34,8.6151306]
[1767175297246,0.68073842,126.37,126.35,0.7]
[1767175299664,0.68073842,126.37,126.34,3.85929828]
[1767175299960,0.68073842,126.37,126.34,0.7]
[1767175300965,0.65116857,126.37,126.34,0.7]
[1767175308568,0.65116857,126.37,126.35,0.69]
[1767175309655,0.68,126.36,126.32,3.15929828]
[1767175309864,0.68,126.35,126.32,7.91599352]
[1767175310052,0.68,126.35,126.32,8.60599352]
[1767175310677,0.68,126.35,126.32,11.7652918]
[1767175313078,0.68,126.35,126.33,0.69]
[1767175313261,0.68,126.35,126.33,3.84929828]
[1767175314080,0.68,126.35,126.33,11.76500446]
[1767175314384,0.65053484,126.35,126.33,11.76500446]
[1767175315980,0.65053484,126.35,126.33,8.60570618]
[1767175316276,0.65053484,126.35,126.33,11.76500446]
[1767175319369,0.65053484,126.35,126.33,8.60570618]
[1767175320578,3.80983312,126.35,126.31,11.76611676]
[1767175320781,3.80983312,126.35,126.32,0.69]
[1767175321284,3.80983312,126.35,126.32,8.60638237]
[1767175322465,0.65053484,126.35,126.32,11.76568065]
[1767175324489,0.65053484,126.35,126.32,10.63050772]
[1767175325487,0.59053485,126.35,126.32,10.63050772]
[1767175327064,0.59053485,126.35,126.32,8.60638237]
[1767175327267,0.59053485,126.35,126.32,10.63050772]
[1767175331595,2.6146602,126.35,126.32,8.60638237]
[1767175331802,0.7,126.35,126.32,8.60636141]
[1767175331978,2.72412535,126.35,126.32,8.60636141]
[1767175333399,2.72412535,126.35,126.32,7.91636141]
[1767175333599,0.7,126.36,126.33,0.7]
[1767175333901,0.7,126.36,126.33,8.61543987]
[1767175335881,0.7,126.36,126.33,10.63956522]
[1767175336305,0.7,126.36,126.33,8.61543987]
[1767175336478,0.7,126.36,126.33,10.63956522]
[1767175337106,0.7,126.36,126.33,8.61543987]
[1767175338198,2.72412535,126.36,126.33,8.61568053]
[1767175338403,1e-08,126.34,126.31,8.60684662]
[1767175338702,1e-08,126.34,126.31,7.91684662]
[1767175338892,1e-08,126.34,126.32,0.69]
[1767175339205,22.37298783,126.38,126.32,8.60638977]
[1767175339407,2.02412535,126.35,126.32,8.60638977]
[1767175340384,2.39412535,126.35,126.32,8.60638977]
[1767175342700,2.39412535,126.35,126.32,0.69]
[1767175343806,0.40364962,126.33,126.3,16.26739492]
[1767175344099,0.37407779,126.33,126.3,16.95739492]
[1767175344307,14.46,126.35,126.31,0.69]
[1767175344308,2.02412535,126.34,126.31,0.69]
[1767175344900,2.02412535,126.34,126.31,8.60697912]
[1767175347116,2.02412535,126.33,126.31,8.60697912]
[1767175348303,2.02412535,126.32,126.3,0.69]
[1767175348712,1.99386436,126.32,126.3,0.69]
[1767175348904,1.99386436,126.32,126.3,8.60762124]
[1767175349590,2.02412535,126.31,126.29,0.69]
[1767175349788,2.02412535,126.31,126.28,7.91832666]
[1767175350017,1.99502661,126.31,126.28,8.60832666]
[1767175350323,2.02412535,126.29,126.26,0.69]
[1767175350625,2.02412535,126.28,126.26,0.69]
[1767175350926,2.02412535,126.28,126.25,8.6104822]
[1767175351207,2.02412535,126.28,126.25,0.69]
[1767175351410,1.99490725,126.27,126.25,0.69]
[1767175352007,2.02412535,126.26,126.24,0.69]
[1767175353216,2.02412535,126.27,126.24,0.69]
[1767175354816,1.99365673,126.27,126.24,0.69]
[1767175355022,1.95825748,126.27,126.24,0.69]
[1767175355417,1.95825748,126.27,126.23,9.94606849]
[1767175355616,1.95825748,126.27,126.23,10.63606849]
[1767175355816,14.46,126.28,126.23,10.63606849]
[1767175356015,2.02412535,126.27,126.23,10.63606849]
[1767175357123,2.02412535,126.27,126.24,0.69]
[1767175358705,2.02412535,126.26,126.24,0.69]
[1767175360227,7.91774881,126.3,126.24,0.69]
[1767175360432,2.02412535,126.28,126.24,2.71412535]
[1767175360802,2.02412535,126.28,126.24,0.69]
[1767175361306,2.02412535,126.28,126.24,7.92135977]
[1767175361627,19.79028208,126.33,126.27,2.02412535]
[1767175361812,2.02412535,126.3,126.27,0.69]
[1767175362007,22.37648659,126.32,126.27,0.69]
[1767175362008,2.02412535,126.29,126.27,0.69]
[1767175362925,2.02412535,126.28,126.21,8.55013837]
[1767175363129,2.02412535,126.25,126.22,0.69]
[1767175363636,2.02412535,126.25,126.22,8.61256677]
[1767175364515,2.02412535,126.25,126.22,0.69]
[1767175365238,2.02412535,126.26,126.23,0.69]
[1767175365438,16.48412535,126.27,126.23,2.71412535]
[1767175366906,16.48412535,126.27,126.24,0.68]
[1767175367214,14.46,126.27,126.24,0.68]
[1767175367416,14.46,126.27,126.24,2.70412535]
[1767175369140,14.46,126.27,126.24,0.68]
[1767175370931,16.48412535,126.27,126.24,0.68]
[1767175374821,14.46,126.27,126.24,0.68]
[1767175375023,16.48412535,126.27,126.24,0.68]
[1767175375227,2.02412535,126.3,126.27,0.68]
[1767175375720,2.02412535,126.31,126.27,0.68]
[1767175375920,16.48412535,126.31,126.27,0.68]
[1767175380644,24.40130665,126.31,126.27,0.68]
[1767175381521,14.46,126.31,126.27,2.70412535]
[1767175381727,16.48412535,126.31,126.27,2.70412535]
[1767175382238,19.78738408,126.35,126.29,2.02412535]
[1767175382239,2.02412535,126.33,126.29,2.02412535]
[1767175382441,2.02412535,126.33,126.3,0.68]
[1767175386650,3.1644042,126.33,126.3,0.68]
[1767175386945,3.1644042,126.32,126.3,0.68]
[1767175389649,22.37572547,126.34,126.3,0.68]
[1767175389950,3.1644042,126.32,126.3,0.68]
[1767175391527,22.37572547,126.34,126.3,0.68]
[1767175391737,3.1644042,126.32,126.3,0.68]
[1767175401564,3.1644042,126.31,126.3,0.68]
[1767175401772,22.37572547,126.34,126.3,0.68]
[1767175402063,22.37572547,126.34,126.26,19.79940411]
[1767175402064,3.1644042,126.31,126.28,0.67]
[1767175402264,3.1644042,126.3,126.28,0.67]
[1767175402772,3.1644042,126.29,126.25,7.92054119]
[1767175403065,0.67,126.3,126.26,11.08454961]
[1767175403265,14.46,126.32,126.27,11.08392319]
[1767175403576,3.1644042,126.31,126.26,3.1644042]
[1767175404275,3.1644042,126.31,126.27,3.1644042]
[1767175404652,3.8344042,126.31,126.28,0.67]
[1767175416588,3.1644042,126.31,126.28,0.67]
[1767175416795,3.8344042,126.31,126.28,0.67]
[1767175421794,3.1644042,126.31,126.28,0.67]
[1767175421994,18.2944042,126.32,126.29,0.67]
[1767175424802,18.2944042,126.32,126.27,0.67]
[1767175424803,3.8344042,126.3,126.27,0.67]
[1767175425001,3.1644042,126.3,126.27,0.67]
[1767175426500,3.8344042,126.31,126.27,3.1644042]
[1767175426698,3.8344042,126.31,126.28,0.72]
[1767175427893,0.67,126.31,126.28,0.72]
[1767175428106,3.8344042,126.31,126.28,0.72]
[1767175428805,3.1644042,126.3,126.26,7.92013621]
[1767175428987,3.8344042,126.3,126.27,0.72]
[1767175429506,3.1644042,126.3,126.27,0.72]
[1767175430407,3.8344042,126.3,126.27,0.72]
[1767175438719,3.8344042,126.3,126.27,3.1644042]
[1767175438923,3.8344042,126.31,126.28,0.72]
[1767175441424,18.2944042,126.32,126.29,0.72]
[1767175442114,15.13,126.32,126.29,0.72]
[1767175442304,15.13,126.32,126.29,3.8844042]
[1767175442734,18.2944042,126.32,126.29,0.72]
[1767175443025,15.22972679,126.36,126.32,0.72]
[1767175443316,3.8344042,126.36,126.32,3.8844042]
[1767175443620,0.67,126.36,126.33,3.8844042]
[1767175443918,0.67,126.37,126.34,0.72]
[1767175444307,3.8344042,126.37,126.34,0.72]
[1767175446498,2.69387867,126.37,126.34,0.72]
[1767175452512,10.60719476,126.37,126.34,0.72]
[1767175457533,8.58331609,126.37,126.34,0.72]
[1767175457708,10.60719476,126.37,126.34,0.72]
[1767175465334,2.69387867,126.35,126.32,0.69]
[1767175465636,2.02387867,126.35,126.32,0.69]
[1767175467435,2.02387867,126.35,126.33,0.69]
[1767175467617,10.60782468,126.36,126.33,0.69]
[1767175470043,2.69387867,126.36,126.33,0.69]
[1767175470641,25.06746174,126.37,126.34,0.69]
[1767175470841,0.67,126.36,126.34,0.69]
[1767175472242,8.58392372,126.36,126.34,0.69]
[1767175473162,25.06745841,126.37,126.34,0.69]
[1767175474201,15.13,126.37,126.34,2.71387867]
[1767175474764,15.13,126.37,126.34,0.69]
[1767175476455,2.69387867,126.35,126.32,0.69]
[1767175483673,17.15387867,126.35,126.32,0.69]
[1767175486074,15.13,126.35,126.32,0.69]
[1767175486266,17.15387867,126.35,126.32,2.71387867]
[1767175488948,17.15387867,126.35,126.32,0.69]
[1767175489153,17.15387867,126.35,126.32,2.71387867]
[1767175492058,16.48387867,126.35,126.33,0.67]
[1767175492385,14.46,126.35,126.33,0.67]
[1767175492961,15.13,126.35,126.33,0.67]
[1767175498991,14.46,126.35,126.33,0.67]
[1767175500961,2.69387867,126.36,126.33,0.67]
[1767175501856,0.67,126.36,126.33,0.67]
[1767175504476,0.67,126.36,126.33,2.69387867]
[1767175508488,0.67,126.36,126.33,3.83249046]
[1767175508999,25.53596146,126.37,126.34,0.7]
[1767175509174,6.64560687,126.4,126.34,3.86249046]
[1767175509382,6.64560687,126.4,126.33,7.91539066]
[1767175509383,26.20470418,126.39,126.36,0.7]
[1767175509884,11.74470418,126.39,126.36,0.7]
[1767175510089,26.20470418,126.39,126.36,0.7]
[1767175510279,0.67,126.38,126.36,0.7]
[1767175512393,0.67,126.36,126.33,0.7]
[1767175512695,3.83249046,126.37,126.34,0.7]
[1767175513201,26.20515891,126.38,126.35,0.7]
[1767175513879,15.13,126.38,126.35,3.86249046]
[1767175514506,18.29249046,126.38,126.35,0.7]
[1767175516899,3.83249046,126.37,126.35,0.7]
[1767175520004,0.67,126.37,126.35,0.7]
[1767175522509,15.13,126.38,126.35,3.86249046]
[1767175523207,18.29249046,126.38,126.35,0.7]
[1767175527302,15.13,126.38,126.35,0.7]
[1767175527508,18.29249046,126.38,126.35,0.7]
[1767175527911,15.13,126.38,126.35,0.7]
[1767175528204,18.29249046,126.38,126.35,0.7]
[1767175530411,3.16249046,126.37,126.35,0.7]
[1767175531904,3.83249046,126.37,126.34,0.72]
[1767175532110,3.83249046,126.36,126.33,0.72]
[1767175533116,3.16249046,126.36,126.33,0.72]
[1767175536710,3.83249046,126.36,126.33,0.72]
[1767175538010,0.67,126.36,126.33,3.16249046]
[1767175538217,18.29249046,126.38,126.35,0.72]
[1767175539213,15.13,126.38,126.35,0.72]
[1767175542210,18.29249046,126.38,126.35,0.72]
[1767175546600,15.13,126.38,126.35,0.72]
[1767175546903,18.29249046,126.38,126.35,0.72]
[1767175549523,15.13,126.38,126.35,0.72]
[1767175549704,26.20522856,126.38,126.35,0.72]
[1767175551822,23.0427381,126.38,126.35,0.72]
[1767175552119,26.20522856,126.38,126.35,0.72]
[1767175552516,23.0427381,126.38,126.35,0.72]
[1767175552706,26.20522856,126.38,126.35,0.72]
[1767175556030,23.0427381,126.38,126.35,0.72]
[1767175556326,26.20522856,126.38,126.35,0.72]
[1767175559928,23.0427381,126.38,126.35,0.72]
[1767175560231,3.16249046,126.37,126.35,0.72]
[1767175561914,0.67,126.35,126.32,0.72]
[1767175562121,3.83249046,126.35,126.32,0.72]
[1767175562323,3.16249046,126.34,126.32,0.72]
[1767175562633,3.16249046,126.35,126.32,0.72]
[1767175562833,18.29249046,126.36,126.32,11.07882402]
[1767175563021,18.29249046,126.36,126.33,0.72]
[1767175567344,15.13,126.36,126.33,0.72]
[1767175567546,18.29249046,126.36,126.33,0.72]
[1767175568548,17.15421086,126.36,126.33,0.72]
[1767175570128,23.04395091,126.36,126.33,0.72]
[1767175570324,15.13,126.38,126.35,0.72]
[1767175570538,17.15421086,126.38,126.35,0.72]
[1767175570745,2.69421086,126.38,126.35,0.72]
[1767175571049,17.15421086,126.38,126.35,0.72]
[1767175572344,0.67,126.37,126.35,0.72]
[1767175579128,7.31560687,126.4,126.35,2.02421086]
[1767175579333,9.33981773,126.4,126.37,0.72]
[1767175580361,17.25141581,126.4,126.37,0.72]
[1767175582463,2.02421086,126.39,126.37,0.72]
[1767175582634,15.22720495,126.4,126.37,0.72]
[1767175582834,2.02421086,126.39,126.37,0.72]
[1767175586345,17.15421086,126.41,126.38,0.72]
[1767175586539,2.02421086,126.4,126.38,0.72]
[1767175591273,23.04082207,126.41,126.38,0.72]
[1767175591573,2.02421086,126.4,126.38,0.72]
[1767175593468,4.21916787,126.43,126.4,0.72]
[1767175593675,6.24337873,126.43,126.4,0.72]
[1767175599774,4.21916787,126.43,126.41,0.72]
[1767175599961,4.21916787,126.43,126.42,0.72]
[1767175603281,6.24337873,126.43,126.42,0.72]
[1767175603899,6.24337873,126.43,126.39,0.72]
[1767175604186,2.02421086,126.42,126.39,0.72]
[1767175606468,2.02421086,126.42,126.4,0.66]
[1767175607964,6.24337873,126.43,126.4,0.66]
[1767175609486,0.1,126.44,126.42,2.02421086]
[1767175609687,0.1,126.45,126.43,2.02421086]
[1767175609879,2.12421086,126.45,126.41,2.02421086]
[1767175610081,2.12421086,126.45,126.41,9.93482134]
[1767175611172,0.1,126.45,126.41,9.93482134]
[1767175611878,0.1,126.45,126.42,2.02421086]
[1767175613792,0.1,126.45,126.41,7.91061048]
[1767175613984,0.1,126.45,126.42,2.02421086]
[1767175620284,2.02421086,126.43,126.4,9.93543089]
[1767175620685,2.02421086,126.43,126.4,7.91122003]
[1767175620879,2.02421086,126.43,126.4,9.93543089]
[1767175621386,0.72,126.44,126.4,9.93543089]
[1767175621594,2.74421086,126.44,126.4,9.93543089]
[1767175622293,0.1,126.45,126.42,2.02421086]
[1767175622673,0.82,126.45,126.42,2.02421086]
[1767175623899,0.1,126.45,126.44,2.02421086]
[1767175625189,0.1,126.45,126.43,9.93328339]
[1767175626300,0.1,126.45,126.44,7.90888959]
[1767175627191,0.1,126.45,126.42,7.90958693]
[1767175627391,0.1,126.45,126.43,7.90946738]
[1767175627605,0.1,126.45,126.43,9.93367824]
[1767175627999,0.1,126.45,126.43,7.90946738]
[1767175630508,0.1,126.45,126.43,11.06700175]
[1767175632493,0.1,126.45,126.43,7.90946738]
[1767175632804,3.15753437,126.44,126.39,28.12918029]
[1767175633015,3.83753437,126.43,126.4,7.91104032]
[1767175633301,0.68,126.43,126.4,7.91104032]
[1767175633492,3.83753437,126.43,126.4,7.91104032]
[1767175635511,3.83753437,126.43,126.4,11.06857469]
[1767175636087,0.78,126.45,126.41,3.15753437]
[1767175636308,0.78,126.45,126.42,3.15753437]
[1767175636513,0.78,126.45,126.41,3.15753437]
[1767175637314,0.78,126.45,126.41,11.06794394]
[1767175638913,0.78,126.45,126.42,3.15753437]
[1767175639091,0.78,126.45,126.43,3.15753437]
[1767175639417,0.78,126.45,126.44,3.15753437]
[1767175640012,1e-08,126.45,126.44,3.15753437]
[1767175640306,1e-08,126.45,126.4,67.24683543]
[1767175640609,1e-08,126.45,126.44,3.15753437]
[1767175641002,1e-08,126.45,126.4,67.24683543]
[1767175641003,3.85753438,126.45,126.42,7.90991313]
[1767175643710,3.85753438,126.45,126.41,11.06798172]
[1767175649322,0.70000001,126.45,126.41,11.06798172]
[1767175649620,3.85753438,126.45,126.41,11.06798172]
[1767175649822,0.70000001,126.45,126.41,11.06798172]
[1767175650015,0.70000001,126.45,126.42,11.06763472]
[1767175650216,0.7,126.43,126.39,8.35013837]
[1767175650522,0.7,126.43,126.39,16.29179852]
[1767175650523,0.67072409,126.42,126.39,16.29179852]
[1767175650722,0.67072409,126.42,126.39,19.44933289]
[1767175650922,0.67072409,126.42,126.4,3.15753437]
[1767175651421,0.67072409,126.42,126.39,16.29179852]
[1767175651724,0.67072409,126.42,126.4,3.15753437]
[1767175653110,0.64064068,126.42,126.4,3.15753437]
[1767175653494,0.64064068,126.42,126.4,11.06890845]
[1767175657022,3.15753437,126.44,126.4,11.06890845]
[1767175657224,3.85753437,126.44,126.4,11.12890845]
[1767175657529,0.7,126.44,126.4,11.12890845]
[1767175658221,0.7,126.44,126.41,3.15753437]
[1767175658802,0.7,126.44,126.4,7.97137408]
[1767175659002,0.7,126.44,126.4,11.12890845]
[1767175659816,0.7,126.44,126.41,3.15753437]
[1767175660117,0.7,126.44,126.4,7.97137408]
[1767175660317,0.7,126.44,126.41,3.15753437]
[1767175660533,3.85753437,126.44,126.4,11.12890845]
[1767175660733,1e-08,126.45,126.39,7.91181121]
[1767175660734,0.7,126.42,126.39,7.91181121]
[1767175660916,0.7,126.4,126.38,7.91246782]
[1767175661333,3.15753437,126.41,126.38,7.91246782]
[1767175661536,3.85753437,126.41,126.38,7.97246782]
[1767175661737,0.7,126.41,126.38,11.13000219]
[1767175662333,0.7,126.41,126.38,0.06]
[1767175662334,3.15753437,126.41,126.38,0.06]
[1767175662628,0.7,126.39,126.36,12.03317197]
[1767175662834,0.66974397,126.39,126.36,12.03317197]
[1767175663013,0.66974397,126.39,126.36,7.91361359]
[1767175663212,3.15753437,126.39,126.35,3.21753437]
[1767175663411,3.15753437,126.39,126.35,11.07201651]
[1767175663820,3.12826207,126.39,126.35,7.91448214]
[1767175664012,3.12826207,126.39,126.34,15.28291618]
[1767175664433,3.12826207,126.39,126.34,12.12538181]
[1767175664631,3.12826207,126.39,126.35,3.15753437]
[1767175664838,0.7,126.38,126.34,15.28291618]
[1767175666336,0.7,126.36,126.33,7.91570706]
[1767175666539,3.15753437,126.36,126.32,3.15753437]
[1767175666847,0.72,126.34,126.31,15.1953419]
[1767175667232,0.72,126.34,126.31,11.07417132]
[1767175667814,0.72,126.34,126.32,7.91630951]
[1767175668816,0.72,126.34,126.32,11.07384388]
[1767175669038,0.69044113,126.34,126.32,11.07384388]
[1767175670039,0.65994391,126.34,126.32,11.07384388]
[1767175670716,0.65994391,126.34,126.31,3.24753437]
[1767175670920,0.65994391,126.34,126.31,3.15753437]
[1767175671216,0.65994391,126.34,126.32,3.15753437]
[1767175671445,0.65994391,126.34,126.31,0.15]
[1767175671744,0.65994391,126.34,126.31,3.30753437]
[1767175676725,3.81747828,126.34,126.31,3.30753437]
[1767175678436,3.81747828,126.34,126.31,0.15]
[1767175679744,0.72,126.33,126.3,11.22519074]
[1767175679938,0.72,126.33,126.3,8.06765637]
[1767175680143,0.72,126.33,126.3,11.22519074]
[1767175684942,0.72,126.36,126.32,3.15753437]
[1767175685145,0.72,126.35,126.32,3.15753437]
[1767175685745,0.72,126.35,126.32,11.07386683]
[1767175686228,0.72,126.35,126.32,7.91633246]
[1767175686624,0.67,126.34,126.31,11.22427388]
[1767175687656,0.67,126.34,126.31,8.06673951]
[1767175687949,3.82753437,126.34,126.31,8.06673951]
[1767175689052,0.67,126.34,126.31,8.06673951]
[1767175692227,2.69469813,126.34,126.31,8.06673951]
[1767175692549,0.67,126.33,126.3,29.88649543]
[1767175693126,0.67,126.33,126.3,10.0923545]
[1767175693763,0.67,126.33,126.3,0.15]
[1767175695631,2.69469813,126.33,126.3,0.15]
[1767175697255,0.67,126.32,126.3,0.15]
[1767175698745,0.63992882,126.32,126.3,0.15]
[1767175699664,22.37390638,126.36,126.3,8.06753842]
[1767175699840,2.02469813,126.34,126.3,8.06753842]
[1767175700753,0.67,126.33,126.3,8.06753842]
[1767175701255,2.69469813,126.33,126.3,8.06753842]
[1767175702154,2.6641602,126.33,126.3,8.06753842]
[1767175702543,2.02469813,126.33,126.3,7.91753842]
[1767175704255,0.67,126.32,126.3,7.91753842]
[1767175704455,0.64031864,126.32,126.3,7.91753842]
[1767175705362,0.6108085,126.32,126.3,7.91753842]
[1767175706152,0.58127885,126.32,126.3,7.91753842]
[1767175709268,0.55207542,126.32,126.3,7.91753842]
[1767175710266,0.52167239,126.32,126.3,7.91753842]
[1767175711180,0.4925126,126.32,126.3,7.91753842]
[1767175712572,2.02469813,126.34,126.3,9.94223655]
[1767175712771,2.02469813,126.37,126.32,2.41469813]
[1767175712975,0.67,126.36,126.33,2.02469813]
[1767175713181,0.67,126.35,126.32,2.41469813]
[1767175713358,0.67,126.35,126.31,9.9414367]
[1767175713359,0.67,126.34,126.31,9.9414367]
[1767175713549,2.69469813,126.34,126.31,7.91673857]
[1767175713871,2.69469813,126.34,126.31,8.30673857]
[1767175714054,0.67,126.33,126.31,7.91673857]
[1767175714465,0.67,126.33,126.3,10.33213596]
[1767175719187,0.67,126.33,126.3,8.30743783]
[1767175719368,0.67,126.33,126.3,10.33213596]
[1767175720174,0.67,126.33,126.31,2.41469813]
[1767175720759,2.02469813,126.35,126.31,2.41469813]
[1767175720760,0.67,126.34,126.31,2.41469813]
[1767175721918,0.67,126.34,126.31,10.33164504]
[1767175722783,0.67,126.34,126.31,8.30694691]
[1767175723081,0.67,126.35,126.32,0.39]
[1767175723281,0.67,126.35,126.31,10.33164504]
[1767175724376,0.67,126.35,126.31,8.30694691]
[1767175724584,0.67,126.35,126.32,2.02469813]
[1767175726686,0.7,126.37,126.34,2.02469813]
[1767175727385,0.7,126.37,126.34,2.41469813]
[1767175728061,0.7,126.37,126.34,2.02469813]
[1767175728686,0.7,126.37,126.34,9.93967381]
[1767175733588,2.72469813,126.37,126.34,7.91497568]
[1767175734991,2.02469813,126.37,126.34,7.91497568]
[1767175735184,0.7,126.36,126.34,7.91497568]
[1767175737483,0.7,126.36,126.34,9.93967381]
[1767175738162,0.7,126.36,126.34,7.91497568]
[1767175738371,0.7,126.36,126.34,2.02469813]
[1767175741189,0.7,126.36,126.34,9.9398008]
[1767175741376,22.3714001,126.4,126.35,2.71469813]
[1767175741377,2.02469813,126.39,126.35,2.71469813]
[1767175743564,0.7,126.38,126.35,2.71469813]
[1767175746771,0.7,126.39,126.36,2.71469813]
[1767175747489,0.7,126.39,126.36,2.02469813]
[1767175748176,0.7,126.38,126.34,2.02469813]
[1767175748380,0.7,126.37,126.34,2.71469813]
[1767175750495,0.7,126.37,126.34,3.85175375]
[1767175753598,0.7,126.37,126.34,0.69]
[1767175753789,0.7,126.37,126.34,3.85175375]
[1767175758304,3.82175375,126.35,126.32,0.68]
[1767175758494,0.66,126.34,126.31,16.94701158]
[1767175758694,0.62967155,126.34,126.31,20.10876533]
[1767175758998,0.62967155,126.34,126.31,12.19189212]
[1767175760290,0.62967155,126.34,126.31,11.51189212]
[1767175760495,0.62967155,126.34,126.31,12.19189212]
[1767175761399,0.62967155,126.34,126.31,19.42874371]
[1767175761594,0.66,126.36,126.33,0.68]
[1767175763310,0.66,126.36,126.33,11.75741067]
[1767175767004,0.66,126.36,126.33,3.84175375]
[1767175769813,0.66,126.36,126.33,3.16175375]
[1767175771618,3.16175375,126.36,126.32,3.84175375]
[1767175771812,0.66,126.35,126.32,3.84175375]
[1767175774697,0.66,126.37,126.34,3.84175375]
[1767175776121,0.66,126.37,126.34,3.16175375]
[1767175776427,0.66,126.36,126.33,3.84175375]
[1767175786331,0.63066704,126.36,126.33,3.84175375]
[1767175786516,0.63066704,126.36,126.33,0.68]
[1767175789538,0.63066704,126.36,126.32,11.74784307]
[1767175791218,0.63066704,126.36,126.33,0.67]
[1767175793739,0.67,126.35,126.32,7.91608932]
[1767175794240,0.67,126.33,126.3,0.67]
[1767175794538,3.80144519,126.33,126.3,0.67]
[1767175795127,0.63969144,126.33,126.3,11.74935481]
[1767175795332,0.63969144,126.33,126.31,0.67]
[1767175796545,0.63969144,126.33,126.31,3.83175375]
[1767175796728,0.63969144,126.33,126.31,0.67]
[1767175797235,0.63969144,126.33,126.31,3.83175375]
[1767175797433,0.63969144,126.33,126.31,0.67]
[1767175801439,0.60948585,126.33,126.31,0.67]
[1767175802030,0.60948585,126.33,126.31,3.83175375]
[1767175802746,0.57954592,126.33,126.31,3.83175375]
[1767175803329,3.16175375,126.39,126.33,0.67]
[1767175803533,3.16175375,126.37,126.34,0.67]
[1767175803727,3.16175375,126.37,126.33,3.83175375]
[1767175804725,0.67,126.36,126.33,3.83175375]
[1767175804915,0.67,126.36,126.33,0.67]
[1767175805116,0.67,126.36,126.33,3.83175375]
[1767175806152,0.67,126.36,126.33,3.16175375]
[1767175806336,0.67,126.36,126.32,3.83175375]
[1767175806337,0.67,126.35,126.32,3.83175375]
[1767175807649,7.91209291,126.39,126.33,3.83175375]
[1767175807844,0.67,126.36,126.33,3.83175375]
[1767175808147,0.63926743,126.36,126.33,3.83175375]
[1767175810549,0.63926743,126.36,126.33,2.694019]
[1767175811447,0.69,126.34,126.31,2.704019]
[1767175811749,2.714019,126.34,126.31,0.68]
[1767175814254,0.69,126.34,126.31,2.704019]
[1767175816352,0.69,126.36,126.32,0.68]
[1767175816532,0.71,126.35,126.32,0.68]
[1767175816851,0.71,126.35,126.32,2.704019]
[1767175820952,0.71,126.35,126.33,0.66]
[1767175821143,0.71,126.35,126.32,0.66]
[1767175821350,0.71,126.35,126.32,2.684019]
[1767175823458,0.71,126.35,126.33,0.66]
[1767175823751,0.71,126.35,126.32,2.684019]
[1767175825457,0.71,126.36,126.33,0.66]
[1767175825651,0.71,126.36,126.33,2.684019]
[1767175826454,0.71,126.36,126.33,0.66]
[1767175826660,0.71,126.36,126.33,2.684019]
[1767175827253,0.71,126.36,126.33,0.66]
[1767175827254,2.734019,126.36,126.33,0.66]
[1767175828958,0.71,126.36,126.33,0.66]
[1767175829148,2.734019,126.36,126.33,0.66]
[1767175829351,0.71,126.36,126.33,0.66]
[1767175829540,2.734019,126.36,126.33,0.66]
[1767175832359,0.71,126.35,126.32,2.684019]
[1767175832756,0.71,126.35,126.33,0.66]
[1767175835664,2.734019,126.36,126.33,0.66]
[1767175836872,15.17,126.37,126.34,2.024019]
[1767175837068,15.17,126.37,126.34,2.684019]
[1767175837368,0.71,126.39,126.35,2.684019]
[1767175837572,0.71,126.38,126.35,0.66]
[1767175837748,0.71,126.38,126.35,2.684019]
[1767175837956,6.67527309,126.43,126.39,0.66]
[1767175838246,0.71000001,126.45,126.42,2.024019]
[1767175838449,0.71000001,126.45,126.42,2.684019]
[1767175838854,0.68020072,126.45,126.42,0.66]
[1767175839079,0.68020072,126.45,126.42,2.684019]
[1767175839776,0.65114033,126.45,126.42,0.66]
[1767175839952,0.65114033,126.45,126.42,2.684019]
[1767175840149,10.03168922,126.46,126.4,4.11821521]